fUSD/lending_fUSD_20251206
["ID","MTS","AMOUNT","RATE_DAILY","PERIOD"]
[396551460,1765047055028,-500.0,0.00016973,2]
[396551461,1765047055039,-500.0,0.00016973,2]
[396551462,1765047055058,-500.0,0.00016973,2]
[396551463,1765047055070,-500.0,0.00016973,2]
[396551464,1765047055080,-607.48758808,0.00016973,2]
[396551465,1765047055091,-500.0,0.00016973,2]
[396551466,1765047055102,-500.0,0.00016973,2]
[396551467,1765047055112,-373.24493381,0.00016973,2]
[396551468,1765047055122,-500.0,0.00016973,2]
[396551469,1765047055135,-500.0,0.00016973,2]
[396551470,1765047055145,-500.0,0.00016973,2]
[396551471,1765047055155,-500.0,0.00016973,2]
[396551472,1765047055164,-500.0,0.00016973,2]
[396551473,1765047055175,-500.0,0.00016973,2]
[396551474,1765047055185,-500.0,0.00016973,2]
[396551475,1765047055196,-500.0,0.00016973,2]
[396551476,1765047055206,-500.0,0.00016973,2]
[396551477,1765047055217,-500.0,0.00016973,2]
[396551478,1765047055227,-500.0,0.00016973,2]
[396551479,1765047055237,-500.0,0.00016973,2]
[396551480,1765047055247,-500.0,0.00016973,2]
[396551481,1765047055256,-520.49,0.00016985,2]
[396551482,1765047055266,-500.0,0.00016985,2]
[396551483,1765047055276,-500.0,0.00016985,2]
[396551484,1765047055285,-500.0,0.00016985,2]
[396551485,1765047055295,-504.3241041,0.00016985,2]
[396551486,1765047055305,-500.0,0.00016985,2]
[396551487,1765047055315,-500.0,0.00016985,2]
[396551488,1765047055324,-500.0,0.00016985,2]
[396551489,1765047055334,-500.0,0.00016985,2]
[396551490,1765047055345,-500.0,0.00016985,2]
[396551491,1765047055354,-500.0,0.00016985,2]
[396551492,1765047055364,-500.0,0.00016985,2]
[396551493,1765047055374,-500.0,0.00016985,2]
[396551494,1765047055384,-512.78404741,0.00016985,2]
[396551495,1765047055395,-500.0,0.00016985,2]
[396551496,1765047055404,-500.0,0.00016985,2]
[396551497,1765047055414,-500.0,0.00016985,2]
[396551498,1765047055594,-500.0,0.00016985,2]
[396551499,1765047055605,-595.82523484,0.00016985,2]
[396551500,1765047055615,-2227.28,0.00016985,2]
[396551501,1765047055625,-500.0,0.00016985,2]
[396551502,1765047055636,-500.0,0.00016985,2]
[396551503,1765047055645,-1130.69,0.00016985,2]
[396551504,1765047055655,-1130.69,0.00016985,2]
[396551505,1765047055665,-600.0,0.00016986,2]
[396551506,1765047055675,-500.0,0.00016986,2]
[396551507,1765047055686,-1731.21,0.00016986,2]
[396551508,1765047055699,-500.0,0.00016986,2]
[396551509,1765047055709,-500.0,0.00016986,2]
[396551510,1765047055719,-558.08,0.00016986,2]
[396551511,1765047055729,-500.0,0.00016986,2]
[396551512,1765047055740,-525.57,0.00016986,2]
[396551513,1765047055750,-500.0,0.00016986,2]
[396551514,1765047055761,-500.0,0.00016986,2]
[396551515,1765047055771,-406.32556892,0.00016986,2]
[396551516,1765047055781,-500.0,0.00016986,2]
[396551517,1765047055790,-1879.25,0.00016986,2]
[396551518,1765047055803,-500.0,0.00016986,2]
[396551519,1765047055812,-607.46,0.00016986,2]
[396551520,1765047055822,-500.0,0.00016986,2]
[396551521,1765047055832,-572.65,0.00016986,2]
[396551522,1765047055842,-2074.41,0.00016986,2]
[396551523,1765047055853,-500.0,0.00016986,2]
[396551524,1765047055870,-809.76,0.00016986,2]
[396551525,1765047055881,-1950.38,0.00016986,2]
[396551526,1765047055890,-500.0,0.00016986,2]
[396551527,1765047055900,-2238.53,0.00016986,2]
[396551528,1765047055910,-1906.83,0.00016986,2]
[396551529,1765047055919,-500.0,0.00016986,2]
[396551530,1765047055929,-500.0,0.00016986,2]
[396551531,1765047055943,-2098.86,0.00016986,2]
[396551532,1765047055954,-506.86663739,0.00016986,2]
[396551533,1765047055964,-500.0,0.00016986,2]
[396551534,1765047055973,-2318.23,0.00016986,2]
[396551535,1765047055984,-500.0,0.00016986,2]
[396551536,1765047055995,-500.0,0.00016986,2]
[396551537,1765047056005,-500.0,0.00016986,2]
[396551538,1765047056014,-2327.01,0.00016986,2]
[396551539,1765047056023,-500.0,0.00016986,2]
[396551540,1765047056033,-500.0,0.00016986,2]
[396551541,1765047056041,-500.0,0.00016986,2]
[396551542,1765047056051,-500.0,0.00016986,2]
[396551543,1765047056060,-1911.14,0.00016986,2]
[396551544,1765047056069,-500.0,0.00016986,2]
[396551545,1765047056079,-500.0,0.00016986,2]
[396551546,1765047056088,-500.0,0.00016986,2]
[396551547,1765047056098,-505.87,0.00016986,2]
[396551548,1765047056109,-500.0,0.00016986,2]
[396551549,1765047056118,-500.0,0.00016986,2]
[396551550,1765047056128,-500.0,0.00016986,2]
[396551551,1765047056142,-500.0,0.00016986,2]
[396551552,1765047056153,-2520.5,0.00016986,2]
[396551553,1765047056164,-500.0,0.00016986,2]
[396551554,1765047056174,-500.0,0.00016986,2]
[396551555,1765047056183,-500.0,0.00016986,2]
[396551556,1765047056194,-500.0,0.00016986,2]
[396551557,1765047056203,-500.0,0.00016986,2]
[396551558,1765047056212,-293.313751,0.00016986,2]
[396551559,1765047056223,-590.25288541,0.00016986,2]
[396551560,1765047056233,-500.0,0.00016986,2]
[396551561,1765047056242,-500.0,0.00016986,2]
[396551562,1765047056251,-500.0,0.00016986,2]
[396551563,1765047056261,-500.0,0.00016986,2]
[396551564,1765047056270,-408.64552003,0.00016986,2]
[396551565,1765047056279,-1840.11,0.00016986,2]
[396551566,1765047056288,-500.0,0.00016986,2]
[396551567,1765047056298,-500.0,0.00016986,2]
[396551568,1765047056307,-500.0,0.00016986,2]
[396551569,1765047056317,-1049.57,0.00016986,2]
[396551570,1765047056327,-500.0,0.00016986,2]
[396551571,1765047056336,-738.05,0.00016986,2]
[396551572,1765047056346,-2539.1,0.00016986,2]
[396551573,1765047056356,-837.8,0.00016986,2]
[396551574,1765047056366,-500.0,0.00016986,2]
[396551575,1765047056375,-500.0,0.00016986,2]
[396551576,1765047056385,-500.0,0.00016986,2]
[396551577,1765047056395,-532.73,0.00016986,2]
[396551578,1765047056405,-500.0,0.00016986,2]
[396551579,1765047056415,-500.0,0.00016986,2]
[396551580,1765047056424,-500.0,0.00016986,2]
[396551581,1765047056435,-500.0,0.00016986,2]
[396551582,1765047056445,-500.0,0.00016986,2]
[396551583,1765047056455,-500.0,0.00016986,2]
[396551584,1765047056466,-500.0,0.00016986,2]
[396551585,1765047056475,-433.64249485,0.00016986,2]
[396551586,1765047056485,-2090.46,0.00016986,2]
[396551587,1765047056494,-500.0,0.00016986,2]
[396551588,1765047056503,-500.0,0.00016986,2]
[396551589,1765047056514,-500.0,0.00016986,2]
[396551590,1765047056525,-500.0,0.00016986,2]
[396551591,1765047056535,-1975.3,0.00016986,2]
[396551592,1765047056545,-500.0,0.00016986,2]
[396551593,1765047056555,-2226.87,0.00016986,2]
[396551594,1765047056565,-615.23,0.00016986,2]
[396551595,1765047056574,-500.0,0.00016986,2]
[396551596,1765047056586,-500.0,0.00016986,2]
[396551597,1765047056595,-992.09,0.00016986,2]
[396551598,1765047056604,-500.0,0.00016986,2]
[396551599,1765047056615,-1438.95,0.00016986,2]
[396551600,1765047056627,-500.0,0.00016986,2]
[396551601,1765047056638,-1739.86,0.00016986,2]
[396551602,1765047056648,-500.0,0.00016986,2]
[396551603,1765047056658,-500.0,0.00016986,2]
[396551604,1765047056667,-500.0,0.00016986,2]
[396551605,1765047056678,-1959.32,0.00016986,2]
[396551606,1765047056687,-240.55413762,0.00016986,2]
[396551607,1765047056698,-500.0,0.00016986,2]
[396551608,1765047056707,-500.0,0.00016986,2]
[396551609,1765047056718,-500.0,0.00016986,2]
[396551610,1765047056729,-500.0,0.00016986,2]
[396551611,1765047056740,-500.0,0.00016986,2]
[396551612,1765047056750,-2244.83,0.00016986,2]
[396551613,1765047056761,-500.0,0.00016986,2]
[396551614,1765047056770,-500.0,0.00016986,2]
[396551615,1765047056779,-500.0,0.00016986,2]
[396551616,1765047056788,-500.0,0.00016986,2]
[396551617,1765047056799,-500.0,0.00016986,2]
[396551618,1765047056810,-657.94,0.00016986,2]
[396551619,1765047056819,-500.0,0.00016986,2]
[396551620,1765047056829,-500.0,0.00016986,2]
[396551621,1765047056838,-500.0,0.00016986,2]
[396551622,1765047056848,-1697.85,0.00016986,2]
[396551623,1765047056858,-511.31933018,0.00016986,2]
[396551624,1765047056867,-165.25683498,0.00016986,2]
[396551625,1765047056876,-500.0,0.00016986,2]
[396551626,1765047056885,-500.0,0.00016986,2]
[396551627,1765047056895,-500.0,0.00016986,2]
[396551628,1765047056905,-500.0,0.00016986,2]
[396551629,1765047056916,-500.0,0.00016986,2]
[396551630,1765047056927,-500.0,0.00016986,2]
[396551631,1765047056936,-428.28838357,0.00016986,2]
[396551632,1765047056946,-500.0,0.00016986,2]
[396551633,1765047056957,-1061.86,0.00016986,2]
[396551634,1765047056968,-882.93,0.00016986,2]
[396551635,1765047056977,-500.0,0.00016986,2]
[396551636,1765047056986,-500.0,0.00016986,2]
[396551637,1765047056996,-500.0,0.00016986,2]
[396551638,1765047057005,-2286.35,0.00016986,2]
[396551639,1765047057014,-500.0,0.00016986,2]
[396551640,1765047057024,-806.62,0.00016986,2]
[396551641,1765047057035,-3536.29,0.00016986,2]
[396551642,1765047057045,-500.0,0.00016986,2]
[396551643,1765047057055,-680.24,0.00016986,2]
[396551644,1765047057065,-500.0,0.00016986,2]
[396551645,1765047057075,-504.92,0.00016986,2]
[396551646,1765047057085,-500.0,0.00016986,2]
[396551647,1765047057095,-500.0,0.00016986,2]
[396551648,1765047057104,-500.0,0.00016986,2]
[396551649,1765047057114,-500.0,0.00016986,2]
[396551650,1765047057123,-500.0,0.00016986,2]
[396551651,1765047057135,-500.0,0.00016986,2]
[396551652,1765047057145,-500.0,0.00016986,2]
[396551654,1765047057154,-942.04,0.00016986,2]
[396551655,1765047057164,-2292.23,0.00016986,2]
[396551656,1765047057175,-2015.99,0.00016986,2]
[396551657,1765047057184,-500.0,0.00016986,2]
[396551658,1765047057194,-500.0,0.00016986,2]
[396551659,1765047057203,-500.0,0.00016986,2]
[396551660,1765047057213,-500.0,0.00016986,2]
[396551661,1765047057223,-500.0,0.00016986,2]
[396551662,1765047057232,-500.0,0.00016986,2]
[396551663,1765047057242,-500.0,0.00016986,2]
[396551664,1765047057251,-569.41,0.00016986,2]
[396551665,1765047057260,-500.0,0.00016986,2]
[396551667,1765047057269,-500.0,0.00016986,2]
[396551668,1765047057278,-2665.35,0.00016986,2]
[396551669,1765047057288,-500.0,0.00016986,2]
[396551670,1765047057298,-500.0,0.00016986,2]
[396551671,1765047057307,-1921.55,0.00016986,2]
[396551673,1765047057317,-500.0,0.00016986,2]
[396551674,1765047057327,-500.0,0.00016986,2]
[396551675,1765047057337,-500.0,0.00016986,2]
[396551676,1765047057347,-500.0,0.00016986,2]
[396551677,1765047057356,-500.0,0.00016986,2]
[396551679,1765047057365,-500.0,0.00016986,2]
[396551680,1765047057375,-587.58836475,0.00016986,2]
[396551681,1765047057384,-500.0,0.00016986,2]
[396551683,1765047057393,-500.0,0.00016986,2]
[396551684,1765047057404,-500.0,0.00016986,2]
[396551685,1765047057413,-2531.13,0.00016986,2]
[396551686,1765047057424,-500.0,0.00016986,2]
[396551687,1765047057433,-2646.63,0.00016986,2]
[396551689,1765047057442,-500.0,0.00016986,2]
[396551690,1765047057452,-500.0,0.00016986,2]
[396551691,1765047057461,-500.0,0.00016986,2]
[396551692,1765047057471,-500.0,0.00016986,2]
[396551693,1765047057481,-511.58,0.00016986,2]
[396551694,1765047057490,-500.0,0.00016986,2]
[396551695,1765047057500,-2016.4,0.00016986,2]
[396551696,1765047057509,-4282.64,0.00016986,2]
[396551697,1765047057519,-500.0,0.00016986,2]
[396551698,1765047057528,-500.0,0.00016986,2]
[396551699,1765047057537,-730.42,0.00016986,2]
[396551700,1765047057547,-500.0,0.00016986,2]
[396551701,1765047057556,-500.0,0.00016986,2]
[396551702,1765047057565,-673.15,0.00016986,2]
[396551703,1765047057574,-500.0,0.00016986,2]
[396551704,1765047057584,-500.0,0.00016986,2]
[396551705,1765047057594,-500.0,0.00016986,2]
[396551706,1765047057603,-500.0,0.00016986,2]
[396551707,1765047057612,-500.0,0.00016986,2]
[396551708,1765047057621,-2163.95,0.00016986,2]
[396551709,1765047057630,-500.0,0.00016986,2]
[396551710,1765047057640,-500.0,0.00016986,2]
[396551711,1765047057649,-500.0,0.00016986,2]
[396551712,1765047057659,-960.65,0.00016986,2]
[396551713,1765047057668,-500.0,0.00016986,2]
[396551714,1765047057678,-500.0,0.00016986,2]
[396551715,1765047057687,-1145.3,0.00016986,2]
[396551716,1765047057696,-500.0,0.00016986,2]
[396551717,1765047057706,-613.44,0.00016986,2]
[396551718,1765047057715,-500.0,0.00016986,2]
[396551719,1765047057725,-564.54,0.00016986,2]
[396551720,1765047057734,-500.0,0.00016986,2]
[396551721,1765047057745,-500.0,0.00016986,2]
[396551722,1765047057755,-2631.14,0.00016986,2]
[396551723,1765047057765,-500.0,0.00016986,2]
[396551724,1765047057774,-502.63380749,0.00016986,2]
[396551725,1765047057784,-566.27,0.00016986,2]
[396551726,1765047057793,-500.0,0.00016986,2]
[396551727,1765047057803,-500.0,0.00016986,2]
[396551728,1765047057813,-500.0,0.00016986,2]
[396551730,1765047057823,-500.0,0.00016986,2]
[396551731,1765047057832,-596.12,0.00016986,2]
[396551732,1765047057843,-597.08,0.00016986,2]
[396551733,1765047057852,-2160.44,0.00016986,2]
[396551735,1765047057861,-500.0,0.00016986,2]
[396551736,1765047057871,-500.0,0.00016986,2]
[396551737,1765047057880,-500.0,0.00016986,2]
[396551739,1765047057889,-500.0,0.00016986,2]
[396551740,1765047057898,-1164.31,0.00016986,2]
[396551741,1765047057908,-500.0,0.00016986,2]
[396551742,1765047057916,-500.0,0.00016986,2]
[396551744,1765047057928,-500.0,0.00016986,2]
[396551745,1765047057937,-500.0,0.00016986,2]
[396551746,1765047057947,-500.0,0.00016986,2]
[396551748,1765047057957,-500.0,0.00016986,2]
[396551749,1765047057966,-2123.45,0.00016986,2]
[396551750,1765047057975,-500.0,0.00016986,2]
[396551751,1765047057985,-500.0,0.00016986,2]
[396551753,1765047057994,-186.17037626,0.00016986,2]
[396551754,1765047058004,-687.61,0.00016986,2]
[396551755,1765047058013,-500.0,0.00016986,2]
[396551756,1765047058024,-500.0,0.00016986,2]
[396551757,1765047058033,-500.0,0.00016986,2]
[396551758,1765047058042,-515.18442172,0.00016986,2]
[396551760,1765047058052,-500.0,0.00016986,2]
[396551761,1765047058061,-542.02,0.00016986,2]
[396551762,1765047058071,-500.0,0.00016986,2]
[396551764,1765047058081,-500.0,0.00016986,2]
[396551765,1765047058091,-500.0,0.00016986,2]
[396551766,1765047058100,-1586.61,0.00016986,2]
[396551767,1765047058110,-615.49,0.00016986,2]
[396551768,1765047058119,-732.58,0.00016986,2]
[396551770,1765047058129,-500.0,0.00016986,2]
[396551771,1765047058141,-500.0,0.00016986,2]
[396551772,1765047058151,-500.0,0.00016986,2]
[396551773,1765047058160,-319.88227924,0.00016986,2]
[396551775,1765047058170,-649.50593586,0.00016986,2]
[396551776,1765047058179,-1363.58,0.00016986,2]
[396551777,1765047058189,-500.0,0.00016986,2]
[396551778,1765047058198,-500.0,0.00016986,2]
[396551780,1765047058208,-709.99,0.00016986,2]
[396551781,1765047058218,-500.0,0.00016986,2]
[396551782,1765047058227,-181.31849654,0.00016986,2]
[396551784,1765047058236,-500.0,0.00016986,2]
[396551785,1765047058245,-500.0,0.00016986,2]
[396551786,1765047058255,-500.0,0.00016986,2]
[396551787,1765047058265,-500.0,0.00016986,2]
[396551789,1765047058274,-1132.41,0.00016986,2]
[396551790,1765047058283,-500.0,0.00016986,2]
[396551791,1765047058293,-1276.03,0.00016986,2]
[396551792,1765047058302,-500.0,0.00016986,2]
[396551794,1765047058312,-500.0,0.00016986,2]
[396551795,1765047058321,-500.0,0.00016986,2]
[396551796,1765047058330,-565.95,0.00016986,2]
[396551797,1765047058340,-500.0,0.00016986,2]
[396551798,1765047058349,-1749.41,0.00016986,2]
[396551799,1765047058359,-1614.88,0.00016986,2]
[396551801,1765047058368,-1911.22,0.00016986,2]
[396551802,1765047058376,-500.0,0.00016986,2]
[396551803,1765047058386,-536.2,0.00016986,2]
[396551804,1765047058398,-500.0,0.00016986,2]
[396551806,1765047058407,-500.0,0.00016986,2]
[396551807,1765047058417,-4665.37,0.00016986,2]
[396551808,1765047058426,-500.0,0.00016986,2]
[396551809,1765047058436,-500.0,0.00016986,2]
[396551810,1765047058445,-2968.61,0.00016986,2]
[396551811,1765047058455,-500.0,0.00016986,2]
[396551812,1765047058466,-2362.56,0.00016986,2]
[396551813,1765047058475,-500.0,0.00016986,2]
[396551814,1765047058485,-3716.16,0.00016986,2]
[396551815,1765047058494,-500.0,0.00016986,2]
[396551816,1765047058504,-500.0,0.00016986,2]
[396551817,1765047058513,-500.0,0.00016986,2]
[396551818,1765047058523,-7226.83,0.00016986,2]
[396551819,1765047058533,-500.0,0.00016986,2]
[396551820,1765047058542,-500.0,0.00016986,2]
[396551821,1765047058552,-500.0,0.00016986,2]
[396551822,1765047058561,-500.0,0.00016986,2]
[396551823,1765047058570,-872.57,0.00016986,2]
[396551824,1765047058580,-735.82,0.00016986,2]
[396551825,1765047058589,-500.0,0.00016986,2]
[396551826,1765047058598,-2109.02,0.00016986,2]
[396551827,1765047058608,-500.0,0.00016986,2]
[396551828,1765047058617,-500.0,0.00016986,2]
[396551829,1765047058627,-500.0,0.00016986,2]
[396551830,1765047058636,-2289.56,0.00016986,2]
[396551831,1765047058645,-2392.5,0.00016986,2]
[396551832,1765047058654,-500.0,0.00016986,2]
[396551833,1765047058664,-500.0,0.00016986,2]
[396551834,1765047058674,-500.0,0.00016986,2]
[396551835,1765047058683,-500.0,0.00016986,2]
[396551836,1765047058693,-500.0,0.00016986,2]
[396551837,1765047058702,-500.0,0.00016986,2]
[396551838,1765047058711,-500.0,0.00016986,2]
[396551839,1765047058720,-2181.55,0.00016986,2]
[396551840,1765047058729,-500.0,0.00016986,2]
[396551841,1765047058739,-500.0,0.00016986,2]
[396551842,1765047058747,-500.0,0.00016986,2]
[396551843,1765047058757,-2048.55,0.00016986,2]
[396551844,1765047058767,-500.0,0.00016986,2]
[396551845,1765047058777,-524.17,0.00016986,2]
[396551846,1765047058787,-500.0,0.00016986,2]
[396551847,1765047058797,-500.0,0.00016986,2]
[396551848,1765047058807,-1806.09,0.00016986,2]
[396551849,1765047058817,-993.95,0.00016986,2]
[396551850,1765047058827,-500.0,0.00016986,2]
[396551851,1765047058837,-2262.26,0.00016986,2]
[396551852,1765047058847,-595.33,0.00016986,2]
[396551853,1765047058857,-500.0,0.00016986,2]
[396551854,1765047058867,-1119.26,0.00016986,2]
[396551855,1765047058876,-500.0,0.00016986,2]
[396551856,1765047058886,-500.0,0.00016986,2]
[396551857,1765047058896,-500.0,0.00016986,2]
[396551858,1765047058906,-387.2505835,0.00016986,2]
[396551859,1765047058917,-504.40912743,0.00016986,2]
[396551860,1765047058926,-500.0,0.00016986,2]
[396551861,1765047058936,-500.0,0.00016986,2]
[396551862,1765047058946,-2542.29,0.00016986,2]
[396551863,1765047058956,-2002.29,0.00016986,2]
[396551864,1765047058967,-500.0,0.00016986,2]
[396551865,1765047058976,-500.0,0.00016986,2]
[396551866,1765047058986,-1409.42,0.00016986,2]
[396551867,1765047058996,-500.0,0.00016986,2]
[396551868,1765047059006,-5232.49,0.00016986,2]
[396551869,1765047059016,-514.49,0.00016986,2]
[396551870,1765047059026,-500.0,0.00016986,2]
[396551871,1765047059036,-593.32,0.00016986,2]
[396551872,1765047059046,-500.0,0.00016986,2]
[396551873,1765047059055,-500.0,0.00016986,2]
[396551874,1765047059065,-657.91,0.00016986,2]
[396551875,1765047059076,-500.0,0.00016986,2]
[396551876,1765047059086,-503.77028415,0.00016986,2]
[396551877,1765047059096,-2567.68,0.00016986,2]
[396551878,1765047059106,-500.0,0.00016986,2]
[396551879,1765047059116,-500.0,0.00016986,2]
[396551880,1765047059126,-2349.88,0.00016986,2]
[396551881,1765047059141,-1897.85,0.00016986,2]
[396551882,1765047059152,-1844.72,0.00016986,2]
[396551883,1765047059163,-503.78,0.00016986,2]
[396551884,1765047059176,-605.17,0.00016986,2]
[396551885,1765047059189,-1842.86,0.00016986,2]
[396551886,1765047059200,-500.0,0.00016986,2]
[396551887,1765047059211,-500.0,0.00016986,2]
[396551888,1765047059221,-500.0,0.00016986,2]
[396551889,1765047059231,-500.0,0.00016986,2]
[396551890,1765047059241,-500.0,0.00016986,2]
[396551891,1765047059251,-500.0,0.00016986,2]
[396551892,1765047059262,-500.0,0.00016986,2]
[396551893,1765047059274,-2140.37,0.00016986,2]
[396551894,1765047059284,-2349.39,0.00016986,2]
[396551895,1765047059295,-500.0,0.00016986,2]
[396551896,1765047059304,-500.0,0.00016986,2]
[396551897,1765047059314,-500.0,0.00016986,2]
[396551898,1765047059325,-500.0,0.00016986,2]
[396551899,1765047059335,-500.0,0.00016986,2]
[396551900,1765047059346,-500.0,0.00016986,2]
[396551901,1765047059355,-500.0,0.00016986,2]
[396551902,1765047059366,-500.0,0.00016986,2]
[396551903,1765047059377,-500.0,0.00016986,2]
[396551904,1765047059387,-2587.24,0.00016986,2]
[396551905,1765047059399,-500.0,0.00016986,2]
[396551906,1765047059409,-562.55,0.00016986,2]
[396551907,1765047059419,-1868.55,0.00016986,2]
[396551908,1765047059430,-1075.72,0.00016986,2]
[396551909,1765047059440,-500.0,0.00016986,2]
[396551910,1765047059451,-500.0,0.00016986,2]
[396551911,1765047059460,-622.48,0.00016986,2]
[396551912,1765047059470,-2465.79,0.00016986,2]
[396551913,1765047059480,-500.0,0.00016986,2]
[396551914,1765047059490,-2334.07,0.00016986,2]
[396551915,1765047059500,-2465.44,0.00016986,2]
[396551916,1765047059510,-500.0,0.00016986,2]
[396551917,1765047059520,-500.0,0.00016986,2]
[396551918,1765047059529,-500.0,0.00016986,2]
[396551919,1765047059540,-2526.23,0.00016986,2]
[396551920,1765047059549,-2959.29,0.00016986,2]
[396551921,1765047059560,-500.0,0.00016986,2]
[396551922,1765047059570,-500.0,0.00016986,2]
[396551923,1765047059580,-500.0,0.00016986,2]
[396551924,1765047059590,-8749.11,0.00016986,2]
[396551925,1765047059600,-500.0,0.00016986,2]
[396551926,1765047059610,-500.0,0.00016986,2]
[396551927,1765047059620,-500.0,0.00016986,2]
[396551928,1765047059630,-500.0,0.00016986,2]
[396551929,1765047059640,-1787.45,0.00016986,2]
[396551930,1765047059650,-2185.34,0.00016986,2]
[396551931,1765047059660,-2266.96,0.00016986,2]
[396551932,1765047059671,-8695.95,0.00016986,2]
[396551933,1765047059682,-1297.87,0.00016986,2]
[396551934,1765047059693,-1000.0,0.00016986,2]
[396551935,1765047059703,-500.0,0.00016986,2]
[396551936,1765047059714,-514.66,0.00016986,2]
[396551937,1765047059724,-542.28,0.00016986,2]
[396551938,1765047059734,-716.06,0.00016986,2]
[396551939,1765047059745,-500.0,0.00016986,2]
[396551940,1765047059756,-500.0,0.00016986,2]
[396551941,1765047059769,-500.0,0.00016986,2]
[396551942,1765047059780,-2344.75,0.00016986,2]
[396551943,1765047059790,-500.0,0.00016986,2]
[396551944,1765047059801,-500.0,0.00016986,2]
[396551945,1765047059812,-2792.83,0.00016986,2]
[396551946,1765047059823,-500.0,0.00016986,2]
[396551947,1765047059837,-793.08,0.00016986,2]
[396551948,1765047059848,-500.0,0.00016986,2]
[396551949,1765047059861,-2536.76,0.00016986,2]
[396551950,1765047059876,-500.0,0.00016986,2]
[396551951,1765047059886,-819.74,0.00016986,2]
[396551952,1765047059897,-500.0,0.00016986,2]
[396551953,1765047059908,-2394.8,0.00016986,2]
[396551954,1765047059918,-500.0,0.00016986,2]
[396551955,1765047059928,-555.41,0.00016986,2]
[396551956,1765047059939,-2378.17,0.00016986,2]
[396551957,1765047059949,-1034.78,0.00016986,2]
[396551958,1765047059960,-500.0,0.00016986,2]
[396551959,1765047059970,-354.99312784,0.00016986,2]
[396551960,1765047059981,-500.0,0.00016986,2]
[396551961,1765047059992,-653.47,0.00016986,2]
[396551962,1765047060003,-577.55518678,0.00016986,2]
[396551963,1765047060013,-552.63,0.00016986,2]
[396551964,1765047060025,-500.0,0.00016986,2]
[396551965,1765047060036,-1388.29,0.00016986,2]
[396551966,1765047060047,-500.0,0.00016986,2]
[396551967,1765047060059,-500.0,0.00016986,2]
[396551968,1765047060071,-2788.51,0.00016986,2]
[396551969,1765047060081,-2389.57,0.00016986,2]
[396551970,1765047060092,-500.0,0.00016986,2]
[396551971,1765047060102,-500.0,0.00016986,2]
[396551972,1765047060113,-500.0,0.00016986,2]
[396551973,1765047060123,-1679.8,0.00016986,2]
[396551974,1765047060133,-663.1,0.00016986,2]
[396551975,1765047060145,-500.0,0.00016986,2]
[396551976,1765047060157,-500.0,0.00016986,2]
[396551977,1765047060168,-500.0,0.00016986,2]
[396551978,1765047060179,-500.0,0.00016986,2]
[396551979,1765047060191,-500.0,0.00016986,2]
[396551980,1765047060201,-3415.58,0.00016986,2]
[396551981,1765047060211,-500.0,0.00016986,2]